bitfinex-derivatives/quotes_BNBF0:USTF0_20250406
["timestamp","ask_amount","ask_price","bid_price","bid_amount"]
[1743910533789,0.29457076,590.89,589.94,0.29166213]
[1743910533993,0.33811198,591.52,589.94,0.29166213]
[1743910534290,0.31115865,591.51,589.94,0.29166213]
[1743910534492,0.33812913,591.49,589.93,1.26423726]
[1743910534695,0.31115865,591.48,589.94,0.29161595]
[1743910534890,0.33814628,591.46,589.94,0.29161595]
[1743910535089,0.31115865,591.45,589.94,0.29161595]
[1743910535494,0.31115865,591.45,589.78,0.29161595]
[1743910535689,0.31115865,591.45,589.95,0.29161595]
[1743910535895,0.33816343,591.43,589.96,0.29161595]
[1743910536090,0.31115865,591.42,589.8,0.29161595]
[1743910536289,0.33818058,591.4,589.81,0.6307082]
[1743910536489,0.31115865,591.39,589.82,0.63070245]
[1743910536689,0.33819774,591.37,589.83,0.29161595]
[1743910537094,0.31115865,591.36,589.83,0.29161595]
[1743910537395,0.3382149,591.34,589.83,0.6306967]
[1743910537695,0.3382149,591.34,589.84,0.29161595]
[1743910538189,0.3382149,591.34,589.84,0.63069095]
[1743910538396,0.3382149,591.34,589.85,0.29161595]
[1743910538591,0.3382149,591.34,589.86,0.3390635]
[1743910538792,0.3382149,591.34,589.87,0.29161595]
[1743910539094,0.31111545,591.33,589.88,0.29161595]
[1743910539290,0.33823206,591.31,589.89,0.29161595]
[1743910539490,0.33823206,591.31,589.86,0.3390635]
[1743910539491,0.31111545,591.3,589.9,0.29161595]
[1743910539695,0.33824922,591.28,589.91,0.29157258]
[1743910539896,0.31111487,591.27,589.92,0.29157258]
[1743910540098,0.33826066,591.26,589.93,0.29157258]
[1743910540297,0.31111487,591.25,589.94,0.29157258]
[1743910540593,0.3382721,591.24,589.95,0.29157258]
[1743910540893,0.31111487,591.23,589.87,0.29157258]
[1743910541093,0.33828354,591.22,589.88,0.29157258]
[1743910541298,0.33828354,591.22,589.87,0.29157258]
[1743910541499,0.33828354,591.22,589.88,0.29157258]
[1743910541697,0.33828354,591.22,590.02,1.26423726]
[1743910541902,0.33828354,591.22,590.03,0.29157258]
[1743910543703,0.29455206,591.21,590.03,0.29157258]
[1743910543904,0.33829499,591.2,590.03,0.29157258]
[1743910544300,0.33829499,591.2,589.99,0.29157258]
[1743910544602,0.33829499,591.2,589.98,1.26423726]
[1743910544802,0.33829499,591.2,589.99,0.29155989]
[1743910547098,0.33829499,591.2,590.01,1.26423726]
[1743910547296,0.33829499,591.2,590.02,0.29155989]
[1743910548004,0.33829499,591.2,590.01,1.26423726]
[1743910548206,0.33829499,591.2,590.02,0.29156206]
[1743910548806,0.2945745,591.19,590.02,0.29156206]
[1743910549006,0.33830643,591.18,590.02,0.29156206]
[1743910549506,0.33830643,591.18,590.0,0.29156206]
[1743910549807,0.33830643,591.18,590.01,0.29156215]
[1743910550001,0.33830643,591.18,590.0,0.29156215]
[1743910550200,0.33830643,591.18,590.01,0.29156215]
[1743910550405,0.33830643,591.18,590.0,0.29156215]
[1743910550603,0.33830643,591.18,590.01,0.29156215]
[1743910550802,0.33830643,591.18,590.0,0.29156215]
[1743910551103,0.33830643,591.18,590.01,0.29156215]
[1743910551307,0.33830643,591.18,589.99,1.26423726]
[1743910551509,0.33830643,591.18,590.0,0.29156206]
[1743910551706,0.29457948,591.17,590.0,0.29156206]
[1743910552002,0.33831788,591.16,589.99,1.55881674]
[1743910552306,0.33831788,591.16,590.0,0.29156206]
[1743910552507,0.33831788,591.16,590.01,0.29156206]
[1743910552707,0.33831788,591.16,590.02,0.29156206]
[1743910552908,0.33831788,591.16,590.03,0.29156206]
[1743910553103,0.33831788,591.16,590.04,0.29156206]
[1743910553303,0.33831788,591.16,590.0,0.29156206]
[1743910553508,0.33831788,591.16,590.01,0.29156206]
[1743910553708,0.33831788,591.16,590.04,1.26423726]
[1743910554008,0.33831788,591.16,590.05,0.29156206]
[1743910554409,0.33831788,591.16,590.06,0.29157261]
[1743910554606,0.33831788,591.16,590.05,0.29157261]
[1743910554806,0.33831788,591.16,590.04,1.26423726]
[1743910555009,0.33831788,591.16,590.05,0.29156867]
[1743910555506,0.549,591.15,590.05,0.29156867]
[1743910555713,0.33832932,591.14,590.05,0.29156867]
[1743910556311,0.33832932,591.14,590.04,0.29156867]
[1743910556509,0.33832932,591.14,590.05,0.29156867]
[1743910556714,0.33832932,591.14,590.04,0.29156867]
[1743910556910,0.33832932,591.14,590.05,0.29156867]
[1743910557115,0.33832932,591.14,590.04,0.29156867]
[1743910557415,0.33832932,591.14,590.05,0.29156867]
[1743910557714,0.33832932,591.14,590.04,0.29156867]
[1743910557914,0.33832932,591.14,590.05,0.29156867]
[1743910558114,0.33832932,591.14,590.04,0.29156867]
[1743910558309,0.33832932,591.14,590.05,0.29156867]
[1743910558513,0.33832932,591.14,590.04,0.29156867]
[1743910558710,0.33832932,591.14,590.05,0.29156867]
[1743910559010,0.33832932,591.14,590.06,0.29156867]
[1743910559215,0.33832932,591.14,590.05,0.29156867]
[1743910560815,0.33832932,591.14,590.0,0.29156867]
[1743910561016,0.33832932,591.14,590.06,0.29156867]
[1743910561215,0.33832932,591.14,590.07,0.29156707]
[1743910561413,0.33832932,591.14,590.0,0.29156707]
[1743910561618,0.33832932,591.14,590.01,0.29156707]
[1743910561919,0.29458447,591.13,590.02,0.58615154]
[1743910562217,0.63291952,591.13,590.03,0.29156707]
[1743910562714,0.33834077,591.12,590.02,0.29458447]
[1743910562917,0.33834077,591.12,590.03,0.29156708]
[1743910563619,0.33834077,591.12,590.02,0.29156708]
[1743910563818,0.29459694,591.11,590.03,0.29156708]
[1743910564020,0.33835222,591.1,590.02,0.29156708]
[1743910564221,0.33835222,591.1,590.03,0.29156708]
[1743910564419,0.33835222,591.1,590.04,0.29156708]
[1743910564622,0.33835222,591.1,590.02,0.29156708]
[1743910564919,0.33835222,591.1,590.03,0.29156708]
[1743910565220,0.33835222,591.1,590.04,0.29156708]
[1743910565421,0.33835222,591.1,590.02,0.29156708]
[1743910565616,0.33835222,591.1,590.03,0.29156708]
[1743910565824,0.33835222,591.1,590.01,0.29459694]
[1743910566019,0.33835222,591.1,590.02,0.29157226]
[1743910569618,0.33835222,591.1,590.01,0.29157226]
[1743910569821,0.29460068,591.09,590.01,0.58617294]
[1743910570021,0.33836367,591.08,590.02,0.29157226]
[1743910570423,0.99236367,591.08,590.02,0.29157226]
[1743910571130,0.99236367,591.08,590.01,0.29460068]
[1743910571327,0.99236367,591.08,590.02,0.29157188]
[1743910571628,0.99236367,591.08,590.05,1.26423726]
[1743910571827,0.99236367,591.08,590.06,0.29157188]
[1743910573727,0.29459819,591.07,590.06,0.29157188]
[1743910574127,0.29459819,591.07,590.06,1.55580914]
[1743910574327,0.29459819,591.07,590.07,0.29157188]
[1743910575427,0.99236367,591.08,590.07,0.29157188]
[1743910575728,0.29459694,591.06,590.07,0.29157188]
[1743910576434,0.29459694,591.06,590.1,1.26423726]
[1743910576633,0.29459694,591.06,590.11,0.29157188]
[1743910577634,0.29459694,591.06,590.1,1.26423726]
[1743910577834,0.29459694,591.06,590.11,0.29157193]
[1743910578429,0.99236367,591.08,590.11,0.29157193]
[1743910578737,0.29459195,591.05,590.11,1.55580919]
[1743910578935,0.29459195,591.05,590.12,0.29157193]
[1743910580636,0.29459195,591.05,590.17,1.26423726]
[1743910580831,0.29459195,591.05,590.18,0.29157193]
[1743910581437,0.99236367,591.08,590.18,0.29157193]
[1743910581735,0.29458322,591.04,590.18,0.29157193]
[1743910582736,0.29458322,591.04,590.17,1.26423726]
[1743910582937,0.29458322,591.04,590.18,0.29156995]
[1743910583139,0.29458322,591.04,590.22,1.26423726]
[1743910583438,0.29458322,591.04,590.23,0.29156995]
[1743910584335,0.29458322,591.04,590.22,1.26423726]
[1743910584541,0.99236367,591.08,590.23,0.29157029]
[1743910584733,0.29457699,591.03,590.23,0.29157029]
[1743910585141,0.29457699,591.03,590.23,1.55580755]
[1743910585337,0.29457699,591.03,590.24,0.29157029]
[1743910585944,0.29457699,591.03,590.23,1.26423726]
[1743910586144,0.29457699,591.03,590.24,0.29156723]
[1743910587445,0.99236367,591.08,590.24,0.29156723]
[1743910587646,0.603,591.02,590.26,1.26423726]
[1743910587845,0.89757574,591.02,590.27,0.29156723]
[1743910588045,0.603,591.02,590.27,0.29156723]
[1743910592549,0.603,591.02,590.26,1.26423726]
[1743910593449,0.838,591.01,590.26,1.26423726]
[1743910593842,0.33840947,591.0,590.26,1.26423726]
[1743910594645,0.29462313,590.99,590.26,1.26423726]
[1743910594846,0.33842092,590.98,589.84,0.29462313]
[1743910595044,0.33842092,590.98,589.87,0.29166375]
[1743910596152,0.33842092,590.98,589.84,0.29462313]
[1743910596367,0.33842092,590.98,589.87,0.29166569]
[1743910596850,0.29468051,590.97,589.87,0.29166569]
[1743910597146,0.33843238,590.96,589.87,0.29166569]
[1743910599453,0.29467801,590.95,589.87,0.29166569]
[1743910599654,0.33844383,590.94,589.87,0.29166569]
[1743910600149,0.33844383,590.94,589.83,0.29467302]
[1743910600354,0.33844383,590.94,589.87,0.29165677]
[1743910601353,0.33844383,590.94,589.83,0.29467302]
[1743910601559,0.33844383,590.94,589.87,0.29162597]
[1743910602754,0.29464059,590.93,589.87,0.29162597]
[1743910604761,0.29464059,590.93,589.85,0.29464059]
[1743910604959,0.29464059,590.93,589.87,0.29161539]
[1743910605556,0.33844383,590.94,589.87,0.29161539]
[1743910605755,0.29466679,590.92,589.87,0.29161539]
[1743910606255,0.727,590.91,589.87,0.29161539]
[1743910607055,0.727,590.91,589.86,0.63373029]
[1743910607261,0.727,590.91,589.87,0.29164015]
[1743910608761,0.29467053,590.9,589.87,0.29164015]
[1743910609861,0.29467053,590.9,589.86,0.63373403]
[1743910610061,0.29467053,590.9,589.87,0.29164198]
[1743910611459,0.727,590.91,589.87,0.29164198]
[1743910611863,0.29466304,590.89,589.87,0.29164198]
[1743910612262,0.615,590.88,589.86,0.63372654]
[1743910612458,0.615,590.88,589.87,0.29162521]
[1743910615759,0.2946593,590.87,589.87,0.29162521]
[1743910618767,0.2946593,590.87,589.92,1.26423726]
[1743910618966,0.2946593,590.87,589.93,0.29162521]
[1743910620566,0.615,590.88,589.93,0.29162521]
[1743910620768,0.615,590.88,589.94,1.26423726]
[1743910621067,0.615,590.88,589.95,0.29162521]
[1743910624171,0.615,590.88,589.99,1.26423726]
[1743910624372,0.615,590.88,590.0,0.29162521]
[1743910625272,1.02163934,590.91,590.0,0.29162521]
[1743910625871,1.02163934,590.91,590.05,1.26423726]
[1743910626071,1.02163934,590.91,590.06,0.29162521]
[1743910626367,0.727,590.91,590.05,1.26423726]
[1743910626574,0.727,590.91,590.06,0.29161982]
[1743910626766,1.02162188,590.91,590.06,0.29161982]
[1743910627073,1.02162188,590.91,590.05,1.26423726]
[1743910627372,1.02162188,590.91,590.06,0.29161981]
[1743910628073,1.02162188,590.91,590.07,1.26423726]
[1743910628369,1.02162188,590.91,590.08,0.29161981]
[1743910628974,0.684,590.9,590.08,0.29161981]
[1743910630368,0.684,590.9,589.99,0.29161981]
[1743910631377,0.684,590.9,589.98,0.29460816]
[1743910631577,0.684,590.9,589.99,0.29157345]
[1743910632077,0.684,590.9,589.98,0.29460816]
[1743910632273,0.684,590.9,589.99,0.29157345]
[1743910632677,0.684,590.9,589.98,0.29462063]
[1743910632871,0.684,590.9,589.99,0.29157345]
[1743910633075,0.684,590.9,589.99,1.55581071]
[1743910633274,0.684,590.9,590.0,0.29156872]
[1743910634780,0.684,590.9,589.99,1.26423726]
[1743910634975,0.684,590.9,590.0,0.29156603]
[1743910635373,0.684,590.9,589.99,0.29156603]
[1743910635681,0.684,590.9,589.99,0.58618043]
[1743910635881,0.684,590.9,590.0,0.29156603]
[1743910636983,0.765,590.89,590.0,0.29156603]
[1743910637677,0.765,590.89,590.01,0.29155891]
[1743910637883,0.765,590.89,590.0,0.29155891]
[1743910638182,0.765,590.89,590.01,0.29155891]
[1743910638383,0.765,590.89,590.02,0.29155891]
[1743910638681,0.765,590.89,589.99,0.2946144]
[1743910638682,0.765,590.89,590.03,0.29155891]
[1743910638982,0.765,590.89,590.04,0.29155891]
[1743910639183,0.765,590.89,590.0,0.29155891]
[1743910639479,0.765,590.89,590.01,0.29155891]
[1743910639683,0.765,590.89,590.09,1.26423726]
[1743910639884,0.765,590.89,590.1,0.29155818]
[1743910641381,0.765,590.89,590.13,1.26423726]
[1743910641584,0.765,590.89,590.14,0.29155818]
[1743910642486,0.75932047,590.89,590.14,0.29155818]
[1743910642785,0.684,590.9,590.14,0.29155818]
[1743910645886,0.684,590.9,590.12,0.29155818]
[1743910646087,0.684,590.9,590.13,0.29155818]
[1743910646287,0.684,590.9,590.14,0.29155818]
[1743910646582,0.684,590.9,590.15,0.29155818]
[1743910646787,0.684,590.9,590.12,0.29155818]
[1743910646987,0.684,590.9,590.13,0.29155818]
[1743910647186,0.684,590.9,590.12,0.29155818]
[1743910647386,0.684,590.9,590.14,0.29155818]
[1743910647682,0.684,590.9,590.11,1.26423726]
[1743910647683,0.684,590.9,590.15,0.29155818]
[1743910647988,0.684,590.9,590.16,0.29155818]
[1743910648187,0.684,590.9,590.12,0.29155818]
[1743910648387,0.684,590.9,590.12,1.55579544]
[1743910648587,0.684,590.9,590.13,0.29155818]
[1743910650991,0.684,590.9,590.09,0.29456826]
[1743910650992,0.684,590.9,590.14,0.29155818]
[1743910651184,0.684,590.9,590.1,0.29155818]
[1743910651387,0.684,590.9,590.11,0.63047804]
[1743910651786,0.684,590.9,590.12,0.29155818]
[1743910654590,0.684,590.9,590.11,0.33891986]
[1743910654792,0.684,590.9,590.12,0.29120115]
[1743910656294,0.684,590.9,590.13,0.29120128]
[1743910656500,0.684,590.9,590.12,0.29120128]
[1743910656996,0.603,591.34,590.12,0.29120128]
[1743910657299,0.9412149,591.34,590.12,0.29120128]
[1743910657900,0.29449597,591.33,590.12,0.29120128]
[1743910658100,0.29449597,591.33,590.13,0.29119923]
[1743910658300,0.29449597,591.33,590.12,0.29119923]
[1743910659400,0.9412149,591.34,590.12,0.29119923]
[1743910659699,0.29449597,591.32,590.12,0.29119923]
[1743910659901,0.29449597,591.32,590.13,0.29119923]
[1743910660201,0.29449597,591.32,590.14,0.29119923]
[1743910660403,0.29449597,591.32,590.17,1.26423726]
[1743910660600,0.29449597,591.32,590.18,0.29119923]
[1743910660798,0.29449597,591.32,590.19,0.29119923]
[1743910661001,1.15249597,591.32,590.2,0.29119923]
[1743910661297,1.15249597,591.32,590.21,0.29119923]
[1743910661500,1.15249597,591.32,590.18,0.29119923]
[1743910661701,1.15249597,591.32,590.22,0.29119923]
[1743910661902,1.15249597,591.32,590.23,0.29119923]
[1743910662096,1.15249597,591.32,590.18,0.29119923]
[1743910662300,1.15249597,591.32,590.24,0.29119923]
[1743910662501,0.858,591.32,590.25,0.29119923]
[1743910662699,0.29449099,591.31,590.26,0.29119923]
[1743910662904,0.29449099,591.31,590.2,1.26423726]
[1743910663099,0.29449099,591.31,590.21,0.29119923]
[1743910664404,0.29449099,591.31,590.22,1.26423726]
[1743910664802,0.29449099,591.31,590.23,0.29121832]
[1743910665403,0.858,591.32,590.23,0.29121832]
[1743910666203,0.858,591.32,590.22,1.26423726]
[1743910666398,0.858,591.32,590.24,0.29118754]
[1743910666601,0.858,591.32,590.23,0.29118754]
[1743910666901,0.29448476,591.31,590.24,0.29118754]
[1743910667203,0.29448476,591.31,590.2,0.29118754]
[1743910668003,0.29448476,591.31,590.19,0.29448476]
[1743910668203,0.29448476,591.31,590.2,0.29118555]
[1743910668402,0.858,591.32,590.2,0.29118555]
[1743910668600,0.858,591.32,590.12,0.29118555]
[1743910668798,0.29449846,591.3,590.19,0.29449846]
[1743910669003,0.29449846,591.3,590.2,0.29118555]
[1743910669198,0.29449846,591.3,590.21,0.29118555]
[1743910669398,0.29449846,591.3,590.12,0.29118555]
[1743910669803,0.29449846,591.3,590.2,0.29449846]
[1743910670003,0.29449846,591.3,590.21,0.29118555]
[1743910670400,0.29449846,591.3,590.2,0.29449846]
[1743910670599,0.29449846,591.3,590.21,0.29118555]
[1743910671203,0.29449846,591.3,590.2,0.29449846]
[1743910671399,0.858,591.32,590.21,0.29117945]
[1743910671598,0.858,591.32,590.12,0.29117945]
[1743910671799,0.29449846,591.29,590.2,0.29449846]
[1743910672002,0.29449846,591.29,590.21,0.29117945]
[1743910672302,0.29449846,591.29,590.22,0.29117945]
[1743910672602,0.29449846,591.29,590.23,0.29117945]
[1743910672799,0.29449846,591.29,590.24,0.29117945]
[1743910673099,0.29449846,591.29,590.25,0.29117945]
[1743910673305,0.29449846,591.29,590.22,0.29117945]
[1743910673507,0.29449846,591.29,590.23,0.29117945]
[1743910673706,0.29449846,591.29,590.22,0.29117945]
[1743910673907,0.29449846,591.29,590.23,0.29117945]
[1743910674108,0.29449846,591.29,590.22,0.29117945]
[1743910674407,0.858,591.32,590.23,0.29117945]
[1743910674607,0.858,591.32,590.12,0.29117945]
[1743910674809,0.29449846,591.28,590.21,0.29449846]
[1743910675108,0.29449846,591.28,590.22,0.29117945]
[1743910675308,0.29449846,591.28,590.12,0.29117945]
[1743910675609,0.29449846,591.28,590.13,0.29117945]
[1743910675908,0.29449846,591.28,590.14,0.29117945]
[1743910676108,0.29449846,591.28,590.15,0.29117945]
[1743910676311,0.29449846,591.28,590.13,0.29449846]
[1743910676509,0.29449846,591.28,590.14,0.29118389]
[1743910676709,0.29449846,591.28,590.15,0.29118389]
[1743910676903,0.29449846,591.28,590.16,0.29118389]
[1743910677104,0.29449846,591.28,590.17,0.29118389]
[1743910677309,0.623,591.27,590.17,0.29118389]
[1743910677611,0.623,591.27,590.18,0.29118389]
[1743910677913,0.29450469,591.26,590.19,0.29118389]
[1743910678214,0.29450469,591.26,590.2,0.29118403]
[1743910678410,0.29450469,591.26,590.15,0.29450469]
[1743910678411,0.29450469,591.26,590.16,0.29118403]
[1743910678710,0.29450469,591.26,590.34,1.26423726]
[1743910678910,0.29450469,591.26,590.35,0.29118403]
[1743910679111,0.63276535,591.26,590.35,0.29118403]
[1743910680413,0.33826066,591.26,590.35,0.29118403]
[1743910680715,0.29449722,591.25,590.35,0.29118403]
[1743910680913,0.29449722,591.25,590.36,0.29118403]
[1743910681114,0.791,591.24,590.24,1.26423726]
[1743910681314,0.791,591.24,590.37,0.29122468]
[1743910681515,0.791,591.24,590.38,0.29122468]
[1743910681715,0.791,591.24,590.25,0.29122468]
[1743910682717,0.791,591.24,590.24,1.26423726]
[1743910683017,0.791,591.24,590.25,1.55546194]
[1743910683217,0.791,591.24,590.26,0.29122468]
[1743910683717,0.29451093,591.23,590.26,0.29122468]
[1743910684319,0.29451093,591.23,590.25,1.26423726]
[1743910684617,0.29451093,591.23,590.26,0.29122535]
[1743910685919,0.29451093,591.23,590.25,1.26423726]
[1743910686121,0.29451093,591.23,590.31,1.26423726]
[1743910686418,0.29451093,591.23,590.32,0.29122506]
[1743910687718,0.29451093,591.23,590.31,1.26423726]
[1743910687916,0.29451093,591.23,590.32,0.29122529]
[1743910688117,0.29451093,591.23,590.33,1.26423726]
[1743910688318,0.29451093,591.23,590.34,0.29122529]
[1743910689422,0.791,591.24,590.34,0.29122529]
[1743910689721,0.29450096,591.22,590.34,0.29122529]
[1743910690319,0.29450096,591.22,590.33,0.29122529]
[1743910690619,0.29450096,591.22,590.34,0.29122529]
[1743910690815,0.29450096,591.22,590.33,0.29122529]
[1743910691722,0.6327845,591.22,590.33,0.29122529]
[1743910692022,0.6327845,591.22,590.32,1.26423726]
[1743910692416,0.33828354,591.22,590.32,1.26423726]
[1743910692716,0.33828354,591.22,590.12,1.51708471]
[1743910692717,0.29451466,591.21,590.34,1.26423726]
[1743910695218,0.29451466,591.21,590.14,0.29451466]
[1743910695422,0.33828354,591.22,589.7,1.26423726]
[1743910695619,0.33828354,591.22,590.12,0.29122185]
[1743910695819,0.29453087,591.2,590.14,0.29453087]
[1743910696024,0.29453087,591.2,590.15,0.29122185]
[1743910698628,0.33828354,591.22,590.15,0.29122185]
[1743910698828,0.29453087,591.19,590.14,0.29453087]
[1743910699029,0.29453087,591.19,590.15,0.29122185]
[1743910701130,0.29453087,591.19,590.14,0.29453087]
[1743910701331,0.29453087,591.19,590.15,0.29121859]
[1743910701533,0.33828354,591.22,590.15,0.29121859]
[1743910701727,0.29453087,591.18,590.14,0.29453087]
[1743910701932,0.29453087,591.18,590.16,0.29121859]
[1743910702127,0.29453087,591.18,590.17,0.29121859]
[1743910702327,0.29453087,591.18,590.15,0.29121859]
[1743910702934,0.746,591.17,590.15,0.29121859]
[1743910704637,0.746,591.17,590.13,1.26423726]
[1743910704938,0.29453461,591.16,590.14,0.58575293]
[1743910705133,0.29453461,591.16,590.15,0.29121832]
[1743910706839,0.29453461,591.16,590.29,1.26423726]
[1743910707042,0.29453461,591.16,590.3,0.29121832]
[1743910707441,0.746,591.17,590.3,0.29121832]
[1743910708841,0.29451466,591.16,590.3,0.29121832]
[1743910709642,0.29451466,591.16,590.37,1.26423726]
[1743910709842,0.29451466,591.16,590.38,0.29121832]
[1743910710644,0.746,591.17,590.38,0.29121832]
[1743910710846,0.29450469,591.15,590.38,0.29121832]
[1743910711445,0.29450469,591.15,590.37,1.26423726]
[1743910711644,0.29450469,591.15,590.38,0.29121861]
[1743910712047,0.29450469,591.15,590.4,1.26423726]
[1743910712240,0.29450469,591.15,590.41,0.29121861]
[1743910713346,0.29450469,591.15,590.42,0.29120751]
[1743910713645,0.746,591.17,590.43,0.29120751]
[1743910713846,1.04048227,591.17,590.41,0.29120751]
[1743910714147,1.04048227,591.17,590.42,0.29120751]
[1743910714342,1.04048227,591.17,590.41,1.55544477]
[1743910714547,1.04048227,591.17,590.42,0.29120751]
[1743910716448,0.746,591.17,590.42,0.29120751]
[1743910716944,0.29448227,591.16,590.42,0.29120751]
[1743910717150,0.29448227,591.16,590.42,1.26423726]
[1743910718851,0.29448227,591.16,590.02,1.26423726]
[1743910719052,0.29448227,591.16,590.12,0.29119142]
[1743910719246,0.29448227,591.16,590.24,0.29448102]
[1743910719450,0.746,591.17,590.25,0.29119142]
[1743910719847,1.0405184,591.17,590.12,0.29119142]
[1743910720051,1.0405184,591.17,590.13,0.29119142]
[1743910720256,1.0405184,591.17,590.12,0.29119142]
[1743910720451,1.0405184,591.17,590.13,0.29119142]
[1743910720653,1.0405184,591.17,590.12,0.29119142]
[1743910720852,1.0405184,591.17,590.13,0.58570858]
[1743910721150,1.0405184,591.17,590.14,0.29119142]
[1743910721554,1.0405184,591.17,590.13,0.29451716]
[1743910721746,1.0405184,591.17,590.14,0.29119138]
[1743910721947,0.2945184,591.17,590.14,0.29119138]
[1743910722253,0.2945184,591.17,590.13,0.29451716]
[1743910722454,0.33828354,591.22,590.15,0.29119138]
[1743910722654,0.33828354,591.22,590.16,0.29119138]
[1743910722854,0.33828354,591.22,590.05,1.26423726]
[1743910722855,0.29450968,591.18,590.17,0.29119138]
[1743910723054,0.29450968,591.18,590.14,0.29119138]
[1743910723254,0.29450968,591.18,590.15,0.29119138]
[1743910723456,0.29450968,591.18,590.13,0.29450968]
[1743910723457,0.29450968,591.18,590.14,0.29119138]
[1743910723754,0.29450968,591.18,590.15,0.29119138]
[1743910723953,0.29450968,591.18,590.13,0.29450968]
[1743910723954,0.29450968,591.18,590.14,0.29119138]
[1743910724456,0.642,591.17,590.14,0.29119138]
[1743910725656,0.642,591.17,590.12,0.29119138]
[1743910725859,0.642,591.17,590.13,0.29451466]
[1743910726058,0.642,591.17,590.14,0.29119138]
[1743910727959,0.642,591.17,590.22,1.26423726]
[1743910728158,0.642,591.17,590.23,0.29119138]
[1743910730062,0.642,591.17,590.22,0.29119138]
[1743910730261,0.642,591.17,590.23,0.29119138]
[1743910730458,0.642,591.17,590.22,0.29119138]
[1743910730661,0.642,591.17,590.23,0.29119138]
[1743910730863,0.642,591.17,590.21,1.26423726]
[1743910730864,0.642,591.17,590.22,0.29119138]
[1743910731058,0.642,591.17,590.23,0.29119138]
[1743910731258,0.506,591.16,590.24,0.29119138]
[1743910731462,0.506,591.16,590.21,1.26423726]
[1743910731662,0.506,591.16,590.25,0.29116999]
[1743910731862,0.506,591.16,590.22,0.29116999]
[1743910732062,0.506,591.16,590.23,0.29116999]
[1743910732264,0.506,591.16,590.39,1.26423726]
[1743910732466,0.506,591.16,590.4,0.29116999]
[1743910733266,0.506,591.16,590.39,1.26423726]
[1743910733466,0.506,591.16,590.41,0.29116809]
[1743910733667,0.506,591.16,590.39,1.26423726]
[1743910733668,0.506,591.16,590.42,0.29116809]
[1743910733867,0.506,591.16,590.4,0.29116809]
[1743910734969,0.506,591.16,590.39,1.26423726]
[1743910735164,0.506,591.16,590.42,1.26423726]
[1743910735366,0.506,591.16,590.43,0.29116753]
[1743910736572,0.506,591.16,590.42,1.26423726]
[1743910736775,0.506,591.16,590.44,0.29116191]
[1743910736966,0.506,591.16,590.45,0.29116191]
[1743910737170,0.506,591.16,590.43,0.29116191]
[1743910738073,0.506,591.16,590.44,0.29116191]
[1743910738274,0.506,591.16,590.35,0.29116191]
[1743910738572,0.506,591.16,590.36,0.29116191]
[1743910738773,0.506,591.16,590.35,0.29116191]
[1743910739876,0.506,591.16,590.34,0.29116191]
[1743910741178,0.506,591.16,590.33,1.26423726]
[1743910741379,0.506,591.16,590.35,0.29116087]
[1743910741578,0.506,591.16,590.34,0.29116087]
[1743910741775,0.506,591.16,590.35,0.29116087]
[1743910741974,0.506,591.16,590.34,0.29116087]
[1743910742176,0.506,591.16,590.35,0.29116087]
[1743910742473,0.506,591.16,590.36,0.29116087]
[1743910742681,0.506,591.16,590.34,0.29116087]
[1743910742878,0.506,591.16,590.33,1.26423726]
[1743910743079,0.506,591.16,590.34,0.29115789]
[1743910743279,0.775,591.15,590.34,0.29115789]
[1743910744382,0.775,591.15,590.33,1.26423726]
[1743910744575,0.775,591.15,590.34,0.29116334]
[1743910745282,0.775,591.15,590.33,0.29116334]
[1743910745481,0.775,591.15,590.34,0.29116334]
[1743910745680,0.775,591.15,590.32,1.26423726]
[1743910745681,0.775,591.15,590.35,0.29116334]
[1743910745878,0.775,591.15,590.33,0.29116334]
[1743910746077,0.775,591.15,590.34,0.29116334]
[1743910746283,0.775,591.15,590.33,0.29116334]
[1743910746985,0.775,591.15,590.37,1.26423726]
[1743910747282,0.775,591.15,590.38,0.29116334]
[1743910747779,0.775,591.15,590.37,1.26423726]
[1743910747982,0.775,591.15,590.38,0.29116276]
[1743910749484,0.775,591.15,590.36,0.29116276]
[1743910749784,0.775,591.15,590.37,0.29116276]
[1743910749977,0.775,591.15,590.36,0.29116276]
[1743910751684,0.775,591.15,590.35,1.26423726]
[1743910751884,0.775,591.15,590.36,0.29118449]
[1743910752384,0.775,591.15,590.33,0.29118449]
[1743910752585,0.775,591.15,590.34,0.29118449]
[1743910752785,0.775,591.15,590.33,0.29118449]
[1743910754386,0.577,591.14,590.33,0.29118449]
[1743910755090,0.577,591.14,590.34,1.26423726]
[1743910755290,0.577,591.14,590.35,0.29118449]
[1743910756987,0.577,591.14,590.34,0.29118449]
[1743910757187,0.577,591.14,590.35,0.29118449]